Cogmind - Beta 13 @@@ ROGUE MODE // 2024.04.07 @ 00:20:47 Player: LU-1G1 Result: Destroyed by G-34 Mercenary with Small Laser Performance ------------- Evolutions (0) 0 Regions Visited (1) 200 Robots Destroyed (18) 90 Value Destroyed (359) 359 Prototype IDs (0) 0 Alien Tech Used (0) 0 Bonus (0) 0 TOTAL SCORE: 649 Bonus ------- None Cogmind --------- Core Integrity 0/250 Matter 225/300 Energy 99/100 System Corruption 1% Temperature Cool (12) Movement Core (50) Location -10/Materials Parts ------- > --- POWER (1) -------- (None) > --- PROPULSION (2) --- (None) > --- UTILITY (2) ------ (None) > --- WEAPON (2) ------- (None) > --- INVENTORY (5) ---- Aluminum Leg Aluminum Leg Wheel Wheel Small Storage Unit Peak State ------------ > --- POWER ------------ Ion Engine > --- PROPULSION ------- Light Treads Light Treads > --- UTILITY ---------- Small Storage Unit Seismic Detector > --- WEAPON ----------- Medium Laser Assault Rifle > --- INVENTORY -------- Ion Engine Aluminum Leg Aluminum Leg Wheel Wheel EM Pulse Gun [Rating: 7] Favorites ----------- Power Ion Engine Engine Ion Engine Propulsion Light Treads Treads Light Treads Utility Seismic Detector Device Seismic Detector Storage Medium Storage Unit Weapon Assault Rifle Energy Gun Medium Laser Ballistic Gun Assault Rifle Build | -11 -10 ------- Run | Yrd Mat Slots Evolved . | . . Power . | . . Propulsion . | . . Utility . | . . Weapon . | . . Parts Attached 13 | 8 5 Power 2 | 1 1 Engine 2 | 1 1 Core . | . . Reactor . | . . Propulsion 3 | 2 1 Treads 3 | 2 1 Leg . | . . Wheel . | . . Hover . | . . Flight . | . . Utility 4 | 2 2 Device 1 | 1 . Storage 3 | 1 2 Processor . | . . Hackware . | . . Protection . | . . Artifact . | . . Weapon 4 | 3 1 Energy Gun 3 | 2 1 Energy Cannon . | . . Ballistic Gun 1 | 1 . Ballistic Cannon . | . . Launcher . | . . Special Weapon . | . . Impact Weapon . | . . Slashing Weapon . | . . Piercing Weapon . | . . Special Melee Weapon . | . . Unidentified Prototypes . | . . Parts Lost 6 | . 6 Power 2 | . 2 Propulsion . | . . Utility 1 | . 1 Weapon 3 | . 3 Highest Loss Streak 3 | . 3 To Critical Strikes . | . . Average Slot Usage (%) 87 | . 87 Engine 9 | . 9 Treads 26 | . 26 Device 9 | . 9 Storage 14 | . 14 Energy Gun 13 | . 13 Ballistic Gun 13 | . 13 Naked Turns 19 | . 19 Heaviest Build 54 | 15 54 Greatest Support 40 | 40 40 Greatest Overweight (x) 1 | . 1 Average Overweight (x) . | . . Largest Inventory Capacity 20 | 8 20 Average Capacity 9 | 7 9 Most Carried 8 | 6 8 Average Carried 6 | 4 6 Final Capacity 8 | 8 5 Final Carried 6 | 6 5 Class Distribution -------------------- 100% | Mutant Dominant Class ---------------- Mutant | -10/Materials Resources | -11 -10 ----------- Run | Yrd Mat Matter Collected 402 | 334 68 Remotely . | . . Salvage Created 563 | 135 428 Parts 39 | 10 29 Haulers Intercepted . | . . Recyclers Shooed 2 | 1 1 Parts Field Recycled . | . . Retrieved Matter . | . . Parts Self-Destructed . | . . Prevented . | . . Kills | -11 -10 ------- Run | Yrd Mat Combat Hostiles Destroyed 10 | . 10 Guns 9 | . 9 AOE 1 | . 1 Classes Destroyed 7 | 3 4 Worker 2 | 1 1 Builder 2 | . 2 Tunneler 2 | 2 . Recycler 1 | 1 . Watcher 1 | . 1 Swarmer 3 | . 3 Grunt 7 | . 7 Best Kill Streak 3 | 2 3 Combat Bots Only 2 | . 2 Max Kills in Single Turn 2 | 1 2 Gunslinging . | . . Exploded 1 | . 1 Melee . | . . Uniques/NPCs Destroyed . | . . Combat | -11 -10 -------- Run | Yrd Mat Hostile Shots Fired 93 | . 93 Missed 21 | . 21 Damage Taken 957 | . 957 Core 250 | . 250 Absorbed by Shields . | . . Regen/Repaired (Parts) 84 | . 84 Core Remaining (%) 100 | 100 . Volleys Fired 61 | 18 43 Largest 2 | 2 2 Hottest 70 | 70 70 Shots Fired 119 | 36 83 Gun 119 | 36 83 Cannon . | . . Launcher . | . . Special . | . . Kinetic 59 | 18 41 Thermal 54 | 18 36 Explosive . | . . Electromagnetic 6 | . 6 Robot Hit Streak 12 | 12 6 Robot Miss Streak 3 | 2 3 Penetration Max . | . . Secondary Targets 3 | . 3 Max Gunslinging Chain 1 | . 1 Shots Hit Robots 77 | 25 52 Core Hits 32 | 5 27 Critical Kills 1 | . 1 Critical Parts Destroyed . | . . Critical Strikes 6 | 2 4 Burn 5 | 2 3 Destroy 1 | . 1 Melee Attacks . | . . Impact . | . . Slashing . | . . Piercing . | . . Sneak Attacks . | . . Combat Hostiles . | . . Follow-up Attacks . | . . Damage Inflicted 1050 | 299 751 Guns 966 | 299 667 Cannons . | . . Explosions 82 | . 82 Melee . | . . Ramming 2 | . 2 Kinetic 478 | 148 330 Thermal 434 | 151 283 Explosive . | . . Electromagnetic 136 | . 136 Impact . | . . Slashing . | . . Piercing . | . . Highest Corruption 1 | . 1 Average Corruption 1 | . 1 Corruption Purged . | . . Corruption Blocked . | . . Effects 1 | . 1 Message Errors 1 | . 1 Overload Shots . | . . Overflow Damage 27 | . 27 Projectiles . | . . Explosions 27 | . 27 Melee . | . . Knockbacks . | . . Impact . | . . Kinetic . | . . Secondary . | . . Self-Inflicted Damage 86 | . 86 Shots 2 | . 2 Rammed 4 | . 4 Targets Rammed 4 | . 4 Kicked . | . . Crushed . | . . Highest Temperature 135 | 135 117 Average Temperature 48 | 59 43 Received Heat Transfer 468 | . 468 Siege Activations . | . . Robots Corrupted . | . . Combat Hostiles . | . . Parts Fried . | . . Impact Corruptions . | . . Robots Melted . | . . Combat Hostiles . | . . Parts Melted 3 | . 3 Heat Transferred 1665 | 592 1073 Parts Sabotaged . | . . Parts Stolen . | . . Parts Stripped . | . . Power Chain Reactions 2 | . 2 Alert | -11 -10 ------- Run | Yrd Mat Peak Influence 292 | 20 292 Initial 13 | . 13 Average 115 | 5 143 Maximum Alert Level 1 | . 1 Low Security (%) 83 | 100 79 Level 1 16 | . 20 Level 2 . | . . Level 3 . | . . Level 4 . | . . Level 5 . | . . High Security . | . . Max Security . | . . Squads Dispatched 4 | . 4 Investigation 2 | . 2 Extermination . | . . Reinforcement 2 | . 2 Assault . | . . Garrison . | . . Intercept . | . . Searches Triggered . | . . Construction Impeded . | . . Haulers Reinforced . | . . Active Scanning Responses . | . . Cargo Convoy Interrupts . | . . Stealth | -11 -10 --------- Run | Yrd Mat Distress Signals 2 | . 2 Communications Jammed . | . . Distress Signals . | . . Times Spotted 21 | . 21 Peak Tracking Total 5 | . 5 Tactical Retreats 2 | . 2 Traps | -11 -10 ------- Run | Yrd Mat Traps Triggered 1 | . 1 Indirectly . | . . Trap Hack Attempts . | . . Triggered . | . . Disarmed . | . . Reprogrammed . | . . Reused . | . . Traps Extracted . | . . Installed . | . . Triggered . | . . Machines | -11 -10 ---------- Run | Yrd Mat Machines Disabled 4 | . 4 Max in Single Turn 2 | . 2 Machines Repaired . | . . Machines Dismantled . | . . Machines Sabotaged . | . . Overloaded Fab Kills . | . . Hacking | -11 -10 --------- Run | Yrd Mat Machines Accessed 5 | . 5 Terminals 4 | . 4 Fabricators . | . . Repair Stations 1 | . 1 Recycling Units . | . . Scanalyzers . | . . Garrison Access . | . . Total Hacks 11 | . 11 Successful 6 | . 6 Failed 5 | . 5 Catastrophic 2 | . 2 Database Lockouts . | . . Manual . | . . Terminals 9 | . 9 Fabricators . | . . Repair Stations 2 | . 2 Recycling Units . | . . Scanalyzers . | . . Garrison Access . | . . Terminal Hacks 4 | . 4 Robot Analysis 1 | . 1 Recall Investigation 1 | . 1 Hauler Manifests 1 | . 1 Registered Components 1 | . 1 Fabricator Hacks . | . . Repair Station Hacks 2 | . 2 Scan Component 1 | . 1 Repair 1 | . 1 Recycling Unit Hacks . | . . Scanalyzer . | . . Garrison Access Hacks . | . . Unauthorized Hacks . | . . Terminals . | . . Fabricators . | . . Repair Stations . | . . Recycling Units . | . . Scanalyzers . | . . Garrison Access . | . . Data Cores Recovered . | . . Used . | . . Hacking Detections 5 | . 5 Full Trace Events 1 | . 1 Feedback Events . | . . Feedback Blocked . | . . Robot Schematics Acquired . | . . Robots Built . | . . Authchips . | . . Time . | . . Total Robot Build Rating . | . . Part Schematics Acquired . | . . Parts Built . | . . Authchips . | . . Time . | . . Total Part Build Rating . | . . Parts Repaired 1 | . 1 Time 26 | . 26 Parts Recycled . | . . Recycled Matter . | . . Retrieved Matter . | . . Retrieved Components . | . . Parts Scanalyzed . | . . Part Schematics Acquired . | . . Parts Damaged . | . . Bothacking | -11 -10 ------------ Run | Yrd Mat Used RIF Installer . | . . Robots Hacked . | . . Non-combat . | . . Combat . | . . Robot Hacks Applied . | . . Relay Couplers Released . | . . Fabnet Peak Effective % . | . . Robots Rewired . | . . Allies Hacked . | . . Hacks Repelled . | . . Allies | -11 -10 -------- Run | Yrd Mat Total Allies . | . . Largest Group . | . . Highest-Rated Group . | . . Highest-Rated Ally . | . . Total Orders . | . . Ally Attacks . | . . Total Damage . | . . Kills . | . . Allies Corrupted . | . . Allies Melted . | . . Intel | -11 -10 ------- Run | Yrd Mat Robot Analysis Total 1 | . 1 Derelict Logs Recovered . | . . Drone Launches . | . . Drone Recoveries . | . . Exploration | -11 -10 ------------- Run | Yrd Mat Turns Passed 734 | 152 582 Spaces Moved 332 | 52 280 Core 40 | 2 38 Treads 292 | 50 242 Legs . | . . Wheels . | . . Hover . | . . Flight . | . . Fastest Speed 50 | 50 50 Average Speed 146 | 155 145 Slowest Speed 240 | 160 240 Overloaded Moves . | . . Propulsion Burnouts . | . . Robots Hopped . | . . Cave-ins Triggered . | . . Exploration Rate (%) 36 | 5 67 Regions Visited 1 Branch Regions . Pre-discovered Areas . | . . Known Exits Taken . | . . Unknown Exits Taken 1 | 1 . Scrap Searched . | . . Spaces Dug . | . . Terrain Destroyed 2 | . 2 Melee . | . . Projectile . | . . AOE 2 | . 2 Terrain Rammed . | . . Walls Destroyed . | . . Machines Disabled . | . . Actions | -11 -10 --------- Run | Yrd Mat Total 451 | 83 368 Wait 35 | . 35 Move 331 | 51 280 Hop . | . . Pick Up 7 | 6 1 Fast Attach 9 | 7 2 Attach 2 | . 2 Detach . | . . Swap 2 | 1 1 Drop . | . . Fire 61 | 18 43 Melee . | . . Ram . | . . Kick . | . . Crush 4 | . 4 Escape Stasis . | . . Rewire . | . . Trap . | . . Miscellaneous . | . . Route ------- -11/Scrapyard -10/Materials (discovered 3 exits: [*Mat] / [*Min x2]) History --------- Turn | Location | Event 12 | -11/Scrapyard | Discovered new exit (range 15) 153 | -11/Scrapyard | Entered Materials 306 | -10/Materials | Build established: Mutant 333 | -10/Materials | Discovered new exit (range 14) 449 | -10/Materials | Discovered new exit (range 13) 606 | -10/Materials | Repaired Lgt. Treads 620 | -10/Materials | Discovered new exit (range 16) 693 | -10/Materials | Core integrity fell below 50% 716 | -10/Materials | Released all parts (4) 729 | -10/Materials | Core integrity fell below 20% 735 | -10/Materials | Destroyed by G-34 Mercenary with Small Laser Last Messages --------------- 00682_ Switching to secondary target: G-34 Mercenary. 00684_ K-01 Serf collects debris. 00688_ G-34 Mercenary suffers critical hit (Burn). 00691_ Terrain Scanner melted. 00691_ U-05 Engineer destroyed. 00694_ Med. Laser destroyed. 00703_ NF0G=6GQLR|&NHY ULOMLXNFH3NKMQ5C78MS2 00706_ G-34 Mercenary destroyed. 00706_ Switching to secondary target: G-47 Trooper. 00707_ R-06 Scavenger collects Wheel. 00709_ K-01 Serf collects debris. 00709_ Electrolysis Chamber disabled. 00709_ Assault Rifle destroyed. 00711_ K-01 Serf destroyed. 00711_ K-01 Serf collects debris. 00715_ EM Pulse Gun destroyed. 00716_ Released Hcp. Storage Unit. 00716_ Released Med. Storage Unit. 00716_ Released Lgt. Treads. 00720_ K-01 Serf collects debris. Map ----- +----------------------------------------------------+ | " # ?????????????????????????????????????? | | T +? ????????????????????????????????????? | | " #? #???????????????????????????????????? | | ########+##???????????????????????????????????? | | ??????????????????????????????????? | | ??????????????????????????????????? | | ??????????????????????????????????? | | ############ ??????????????????????????????????? | | ?????????????????????????????????????????????????? | | #????????????????????????????????????????????????? | | #?????????????????????##########?????????????????? | | #????????????????? ???# #?????????????????? | | ????????????????" ???# """ ""#######???????????? | | ???????????????"" ???# """ Y"# #???????????? | | ???????????????? ???#= """ ""# #???????????? | | ???????????+???? ??# + #???????????? | | ???????????# ?"" ??# """ [ # #???????????? | | ???????????# """ ??# """ # #???????????? | | ???????????# """ ??# """ ## ##???###?????? | | ???????????# ??#[ !## #?? #?????? | | ???????????# ??########### # #?????? | | ###????????# ????????????# + """ #?????? | | | #????????# | #############g # """ #?????? | | #????????# !!! *%[ w g #??"" #?????? | | #????????# !!!!= % =! g #???? [#?????? | | #????????# !!%* @ !!=""" #????????????? | | #??????????????# k! k[""" #????????????? | | #???????????#### ## !!=% "" #????????????? | | ########## #??#" # !!% = #????????????? | | #??#"" # * #????????????? | | #??#|| # #????????????? | | #####????#"" < ########### #????????????? | | #????????#!! #?????????# ???????????? | | #????????#" #?????????# ?????????? | | #????????#" #?????????# ????????? | | +????????#### ##?????????## ##### ????????? | | #####???????????# #???????????? ??????????????? | | #???????????????# #???????????? ??????????????? | | #???????????????# #???????????????????????????? | | #??????????????## ##??????????????????????????? | | #????###/####### #??????????????????????????? | | %#????# #??????????????????????????? | | +###### #??????????????????????????? | | ^ # #??????????????????????????? | | " # ####+## #??????????????????????????? | | " # ## ## ##??????????????????????????? | | " # ## ## #???????????????????????????? | | + % + ## #???????????????????????????? | | " # ## ## ########????????????????????? | | " # ## ## # """ !#????????????????????? | +----------------------------------------------------+ Best States ------------- Heat Dissipation 25 Energy Generation 10 Energy Capacity 250 Matter Stores 300 Matter Capacity 300 Sight Range 16 Terrain Scan Density 10 Evasion (%) 50 Recoil Reduction 2 Item Schematics ----------------- None Robot Schematics ------------------ None Fabricated ------------ Nothing Alien Tech Used ----------------- None Achievements -------------- None Challenges ------------ None Game ------ Seed ArmageddonGammaExtractor Manual? 0 Play Time 00:06:47 Cumulative 658.9 hours Start 2024.04.07 @ 00:15:50 End 2024.04.07 @ 00:20:47 Sessions 2 Manual Loads 0 Difficulty Rogue Special Mode None Game No. 577 Rogue 362 Adventurer 112 Explorer 103 Win Type - Total 42 Types 26/0/8/3/0/0/4/1/0 Lore% 85 Gallery% 91 Achievement% 82 Wizard Run 0 Options --------- Layout 2 ASCII 0 Keyboard 1 Movement Vi Keybinds 1 Fullscreen 2 Font 24/Terminus Map View 55x54 Zoom Use 0% Tactical HUD 1 Map Filters NONE Filters NONE Steam 0 RUN: 208bfeb4-c59b-4d03-8543-f42ee8399902